bitfinex-derivatives/quotes_SOLF0:USTF0_20250425
["timestamp","ask_amount","ask_price","bid_price","bid_amount"]
[1745612356732,6.6155,151.04,151.02,11.25469486]
[1745612357333,6.6152,151.05,151.02,11.25469486]
[1745612357839,23.72,151.06,151.02,11.25469486]
[1745612358036,6.6149,151.05,151.02,11.25469486]
[1745612358839,6.6149,151.05,151.02,17.87079486]
[1745612359439,23.72,151.06,151.02,17.87079486]
[1745612359440,30.3346,151.06,151.04,11.25469486]
[1745612359737,23.72,151.06,151.04,11.25469486]
[1745612360839,23.72,151.06,151.04,17.86999486]
[1745612361532,23.72,151.06,151.04,11.25469486]
[1745612362440,23.72,151.06,151.04,17.86969486]
[1745612362839,23.7,151.09,151.04,17.86969486]
[1745612363035,23.7,151.09,151.06,11.25469486]
[1745612363243,6.6135,151.08,151.06,11.25469486]
[1745612364343,30.3132,151.09,151.06,11.25469486]
[1745612364543,23.7,151.09,151.06,11.25469486]
[1745612365043,6.6135,151.08,151.06,11.25469486]
[1745612365843,34.95469486,151.09,151.04,11.25469486]
[1745612366344,6.6142,151.07,151.04,11.25469486]
[1745612367946,34.95469486,151.09,151.04,11.25469486]
[1745612368645,6.6143,151.07,151.04,11.25469486]
[1745612370249,23.7,151.09,151.06,11.25469486]
[1745612370543,23.7,151.09,151.08,11.25469486]
[1745612370945,30.3131,151.09,151.08,11.25469486]
[1745612372454,30.3131,151.09,151.06,11.25469486]
[1745612373154,23.7,151.09,151.08,11.25469486]
[1745612374053,30.3135,151.09,151.06,11.25469486]
[1745612374254,23.7,151.09,151.06,11.25469486]
[1745612375250,23.7,151.09,151.08,11.25469486]
[1745612376654,30.3131,151.09,151.08,11.25469486]
[1745612376850,23.7,151.09,151.06,11.25469486]
[1745612377256,6.6138,151.08,151.06,11.25469486]
[1745612379359,30.3132,151.09,151.06,11.25469486]
[1745612379560,30.3132,151.09,151.08,11.25469486]
[1745612379859,23.7,151.09,151.08,11.25469486]
[1745612380959,1.15205085,151.18,151.08,41.57469486]
[1745612381258,23.7,151.23,151.17,11.25469486]
[1745612381562,11.25469486,151.26,151.19,11.25469486]
[1745612381753,11.25469486,151.24,151.19,11.25469486]
[1745612381958,23.7,151.23,151.19,11.25469486]
[1745612382162,11.25469486,151.22,151.17,11.25469486]
[1745612383563,17.86229486,151.22,151.17,11.25469486]
[1745612383764,34.95469486,151.23,151.17,11.25469486]
[1745612383964,30.3071,151.23,151.19,11.25469486]
[1745612384165,34.95469486,151.23,151.19,11.25469486]
[1745612384366,23.7,151.23,151.19,11.25469486]
[1745612384665,23.7,151.23,151.21,11.25469486]
[1745612385366,17.86059486,151.26,151.21,11.25469486]
[1745612385569,23.7,151.25,151.21,11.25469486]
[1745612386668,30.3062,151.25,151.21,11.25469486]
[1745612387269,30.3062,151.25,151.19,24.22016217]
[1745612387771,23.7,151.25,151.2,6.6081]
[1745612388063,23.7,151.25,151.19,17.61166217]
[1745612388273,23.7,151.25,151.21,24.21926217]
[1745612388464,23.7,151.25,151.21,17.61166217]
[1745612388666,23.68,151.28,151.23,17.61166217]
[1745612388866,23.68,151.28,151.24,6.6065]
[1745612389067,23.68,151.28,151.23,17.61166217]
[1745612389367,30.285,151.28,151.23,17.61166217]
[1745612390171,23.68,151.28,151.23,17.61166217]
[1745612390473,23.68,151.28,151.21,24.21926217]
[1745612390667,30.285,151.28,151.21,17.61166217]
[1745612390971,23.68,151.28,151.21,17.61166217]
[1745612391170,6.6055,151.27,151.22,6.6071]
[1745612391370,23.68,151.28,151.21,17.61166217]
[1745612391872,6.606,151.26,151.21,17.61166217]
[1745612392067,23.68,151.28,151.21,17.61166217]
[1745612392474,6.6063,151.25,151.21,17.61166217]
[1745612393572,23.68,151.28,151.21,17.61166217]
[1745612394073,6.6057,151.26,151.21,17.61166217]
[1745612394274,6.6057,151.26,151.21,24.21946217]
[1745612395175,6.6057,151.26,151.22,6.6073]
[1745612395473,6.6057,151.26,151.21,17.61166217]
[1745612395977,6.6057,151.26,151.21,24.21926217]
[1745612396976,6.6061,151.25,151.21,24.21926217]
[1745612400079,6.6069,151.24,151.21,17.61166217]
[1745612400376,23.68,151.28,151.2,23.68]
[1745612401282,6.6066,151.24,151.2,30.288]
[1745612401773,17.61166217,151.27,151.17,6.1208]
[1745612401975,6.6077,151.22,151.17,23.73246217]
[1745612402581,6.6077,151.22,151.18,6.6091]
[1745612403679,6.6071,151.23,151.19,6.6087]
[1745612403879,23.68,151.26,151.19,17.61166217]
[1745612404383,23.68,151.26,151.21,17.61166217]
[1745612404578,23.68,151.26,151.23,17.61166217]
[1745612405075,23.68,151.26,151.23,24.21856217]
[1745612405580,23.68,151.26,151.23,17.61166217]
[1745612405779,30.2857,151.26,151.23,17.61166217]
[1745612405975,23.68,151.26,151.23,17.61166217]
[1745612406379,6.6063,151.25,151.23,17.61166217]
[1745612407379,30.2858,151.26,151.23,17.61166217]
[1745612407580,23.68,151.26,151.23,17.61166217]
[1745612408180,6.6064,151.25,151.23,17.61166217]
[1745612408381,6.6064,151.25,151.21,17.61166217]
[1745612409186,6.6064,151.25,151.21,24.21936217]
[1745612410479,30.2858,151.26,151.22,6.6073]
[1745612410885,23.68,151.26,151.21,17.61166217]
[1745612411083,23.68,151.26,151.2,23.68]
[1745612411283,23.68,151.26,151.19,17.61166217]
[1745612411584,6.6069,151.24,151.2,6.6082]
[1745612411886,23.68,151.26,151.19,17.61166217]
[1745612412086,23.68,151.26,151.19,24.22006217]
[1745612412985,6.6066,151.24,151.19,24.22006217]
[1745612413486,6.6066,151.24,151.2,6.6081]
[1745612415288,6.6066,151.24,151.21,11.27094295]
[1745612421593,6.6063,151.25,151.21,17.87874295]
[1745612423195,30.2859,151.26,151.23,11.27094295]
[1745612423392,23.68,151.26,151.23,11.27094295]
[1745612423689,6.605,151.28,151.25,11.27094295]
[1745612424094,34.93094295,151.29,151.24,11.27094295]
[1745612424295,6.6055,151.27,151.24,11.27094295]
[1745612425295,34.93094295,151.29,151.24,11.27094295]
[1745612426794,11.27094295,151.27,151.21,11.27094295]
[1745612426997,11.27094295,151.23,151.17,6.1208]
[1745612427199,6.6072,151.23,151.2,11.27094295]
[1745612427998,30.2667,151.24,151.2,11.27094295]
[1745612428198,23.66,151.24,151.22,11.27094295]
[1745612428698,23.66,151.27,151.22,11.27094295]
[1745612428899,11.27094295,151.26,151.22,11.27094295]
[1745612429501,23.66,151.27,151.22,11.27094295]
[1745612430301,6.606,151.26,151.22,11.27094295]
[1745612430796,6.6063,151.25,151.22,11.27094295]
[1745612430996,23.66,151.27,151.22,11.27094295]
[1745612431497,6.6064,151.25,151.22,11.27094295]
[1745612432598,6.6057,151.26,151.22,17.87834295]
[1745612433101,6.6057,151.26,151.22,11.27094295]
[1745612433302,6.6061,151.25,151.22,11.27094295]
[1745612434811,6.6058,151.26,151.22,17.87834295]
[1745612435106,23.66,151.27,151.22,17.87834295]
[1745612435406,23.66,151.27,151.17,6.1208]
[1745612435407,30.2655,151.27,151.24,11.27094295]
[1745612435610,23.66,151.27,151.24,11.27094295]
[1745612437013,30.2655,151.27,151.24,11.27094295]
[1745612437720,6.6057,151.26,151.24,11.27094295]
[1745612437918,23.66,151.27,151.24,11.27094295]
[1745612438208,11.27094295,151.26,151.22,11.27094295]
[1745612439013,6.6064,151.25,151.22,11.27094295]
[1745612439416,23.66,151.27,151.24,11.27094295]
[1745612439909,23.66,151.27,151.26,11.27094295]
[1745612440113,6.605,151.28,151.26,11.27094295]
[1745612440311,23.66,151.3,151.26,11.27094295]
[1745612441109,6.6044,151.29,151.23,6.6069]
[1745612441316,34.93094295,151.3,151.18,23.66]
[1745612441514,34.93094295,151.3,151.26,11.27094295]
[1745612442014,6.6046,151.29,151.26,11.27094295]
[1745612442313,34.93094295,151.3,151.18,23.66]
[1745612442512,11.27094295,151.28,151.18,23.66]
[1745612442715,6.6056,151.27,151.23,11.27094295]
[1745612443510,6.6056,151.27,151.23,17.87784295]
[1745612443714,6.6056,151.27,151.23,11.27094295]
[1745612444618,6.6056,151.27,151.22,6.6071]
[1745612444914,6.6057,151.26,151.24,11.27094295]
[1745612445116,11.27094295,151.28,151.24,11.27094295]
[1745612445410,6.6053,151.27,151.24,11.27094295]
[1745612445617,11.27094295,151.28,151.23,11.27094295]
[1745612446119,6.6059,151.26,151.23,11.27094295]
[1745612447018,6.6061,151.25,151.23,11.27094295]
[1745612447418,11.27094295,151.28,151.23,11.27094295]
[1745612447919,23.66,151.3,151.23,11.27094295]
[1745612448221,11.27094295,151.29,151.23,11.27094295]
[1745612448410,6.6048,151.28,151.23,11.27094295]
[1745612448919,6.6048,151.28,151.25,11.27094295]
[1745612449121,6.6044,151.29,151.25,11.27094295]
[1745612450820,6.6048,151.28,151.25,11.27094295]
[1745612454016,11.27094295,151.29,151.25,11.27094295]
[1745612454521,6.606,151.26,151.23,11.27094295]
[1745612455728,6.6061,151.25,151.23,11.27094295]
[1745612460523,6.6073,151.23,151.2,11.27094295]
[1745612460829,11.27094295,151.23,151.19,11.27094295]
[1745612461728,6.6081,151.21,151.19,11.27094295]
[1745612463229,11.27094295,151.24,151.19,11.27094295]
[1745612463432,35.29094295,151.26,151.21,11.27094295]
[1745612464548,6.6067,151.24,151.21,11.27094295]
[1745612465133,6.6069,151.24,151.21,11.27094295]
[1745612466036,6.6063,151.25,151.21,11.27094295]
[1745612466534,6.6066,151.24,151.21,11.27094295]
[1745612466935,35.29094295,151.26,151.21,11.27094295]
[1745612467137,6.6065,151.25,151.21,11.27094295]
[1745612467434,35.29094295,151.26,151.21,11.27094295]
[1745612467637,6.6063,151.25,151.21,11.27094295]
[1745612467837,35.29094295,151.26,151.21,11.27094295]
[1745612468137,6.6068,151.24,151.21,11.27094295]
[1745612468338,11.27094295,151.24,151.19,17.87944295]
[1745612468738,11.27094295,151.24,151.19,11.27094295]
[1745612469538,6.6078,151.22,151.19,11.27094295]
[1745612471937,6.6079,151.21,151.19,11.27094295]
[1745612472239,24.02,151.26,151.19,11.27094295]
[1745612472535,6.6073,151.23,151.19,11.27094295]
[1745612473237,6.6073,151.23,151.21,11.27094295]
[1745612473447,11.27094295,151.24,151.18,11.27094295]
[1745612473939,6.6087,151.2,151.18,11.27094295]
[1745612474334,35.31094295,151.22,151.18,11.27094295]
[1745612474538,35.31094295,151.22,151.16,11.27094295]
[1745612475441,35.31094295,151.22,151.16,17.88094295]
[1745612475741,35.31094295,151.22,151.18,11.27094295]
[1745612476141,6.6081,151.21,151.18,11.27094295]
[1745612476438,24.04,151.22,151.18,11.27094295]
[1745612476644,30.6476,151.22,151.18,11.27094295]
[1745612477546,24.04,151.22,151.2,11.27094295]
[1745612477943,24.04,151.25,151.2,11.27094295]
[1745612478138,6.6068,151.24,151.22,11.27094295]
[1745612478442,24.04,151.25,151.22,11.27094295]
[1745612478642,30.6463,151.25,151.22,11.27094295]
[1745612479144,6.6066,151.24,151.22,11.27094295]
[1745612480038,24.04,151.25,151.22,11.27094295]
[1745612480244,24.04,151.25,151.24,11.27094295]
[1745612480543,23.86,151.28,151.24,11.27094295]
[1745612480745,6.6052,151.27,151.24,11.27094295]
[1745612481439,6.6058,151.26,151.24,11.27094295]
[1745612481744,23.86,151.28,151.23,11.27094295]
[1745612481942,23.86,151.28,151.24,11.27094295]
[1745612483244,6.6055,151.27,151.24,11.27094295]
[1745612483545,23.86,151.28,151.24,11.27094295]
[1745612485344,6.6058,151.26,151.22,6.6072]
[1745612485540,23.86,151.28,151.22,6.6072]
[1745612485541,23.86,151.28,151.24,11.27094295]
[1745612486046,6.6057,151.26,151.24,11.27094295]
[1745612486447,23.86,151.28,151.2,6.6082]
[1745612486645,6.6067,151.24,151.21,11.27094295]
[1745612487547,6.6063,151.25,151.21,11.27094295]
[1745612488250,6.6066,151.24,151.21,11.27094295]
[1745612489348,6.6063,151.25,151.21,17.87874295]
[1745612490148,6.6065,151.24,151.21,11.27094295]
[1745612493254,11.27094295,151.26,151.21,11.27094295]
[1745612493751,6.6067,151.24,151.21,11.27094295]
[1745612495149,6.6067,151.24,151.21,17.87864295]
[1745612495651,6.6063,151.25,151.21,17.87864295]
[1745612496751,17.87674295,151.26,151.22,6.6073]
[1745612497052,35.13094295,151.28,151.23,11.27094295]
[1745612497348,41.73594295,151.28,151.24,6.6065]
[1745612497543,35.13094295,151.28,151.24,6.6065]
[1745612497947,35.13094295,151.28,151.16,6.0244]
[1745612498151,11.27094295,151.24,151.19,11.27094295]
[1745612498348,23.86,151.23,151.18,11.27094295]
[1745612498547,17.87874295,151.22,151.18,11.27094295]
[1745612498740,11.27094295,151.22,151.16,17.29534295]
[1745612499145,6.608,151.21,151.16,23.90514295]
[1745612499851,6.608,151.21,151.17,6.6095]
[1745612501154,6.6083,151.2,151.16,12.6343]
[1745612501343,6.6083,151.2,151.16,23.90524295]
[1745612501950,6.6083,151.2,151.16,17.29534295]
[1745612502247,11.27094295,151.22,151.16,11.27094295]
[1745612502454,11.27094295,151.2,151.16,11.27094295]
[1745612502755,6.6091,151.19,151.16,11.27094295]
[1745612502952,6.6091,151.19,151.12,23.86]
[1745612503253,6.6092,151.18,151.15,11.27094295]
[1745612503648,11.27094295,151.2,151.12,23.86]
[1745612503952,11.27094295,151.2,151.15,11.27094295]
[1745612504755,6.609,151.19,151.15,11.27094295]
[1745612505551,6.609,151.19,151.15,17.88134295]
[1745612506053,11.27094295,151.2,151.15,11.27094295]
[1745612506256,23.86,151.19,151.15,11.27094295]
[1745612506758,6.6094,151.18,151.15,11.27094295]
[1745612507858,6.6097,151.17,151.13,12.4128]
[1745612508058,23.86,151.19,151.14,17.88184295]
[1745612508659,23.86,151.19,151.14,6.6109]
[1745612508859,11.27094295,151.18,151.09,23.86]
[1745612509062,11.27094295,151.18,151.12,11.27094295]
[1745612509263,11.27094295,151.16,151.12,11.27094295]
[1745612509455,11.27094295,151.16,151.11,6.6119]
[1745612509656,11.27094295,151.16,151.12,11.27094295]
[1745612509967,6.6107,151.15,151.12,11.27094295]
[1745612510154,11.27094295,151.16,151.12,11.27094295]
[1745612510762,17.88124295,151.16,151.12,11.27094295]
[1745612510963,17.88124295,151.16,151.12,17.88264295]
[1745612511462,6.6098,151.17,151.13,6.6113]
[1745612511764,6.6098,151.17,151.12,11.27094295]
[1745612512261,6.6098,151.17,151.12,17.88254295]
[1745612512466,6.6103,151.16,151.09,23.86]
[1745612512662,6.6103,151.16,151.12,11.27094295]
[1745612512962,11.27094295,151.18,151.12,17.88274295]
[1745612513258,6.6099,151.17,151.12,17.88274295]
[1745612514467,6.6101,151.16,151.12,11.27094295]
[1745612516667,30.8505,151.15,151.12,11.27094295]
[1745612516972,24.24,151.15,151.12,11.27094295]
[1745612518069,30.8507,151.15,151.12,11.27094295]
[1745612518466,35.51094295,151.15,151.1,11.27094295]
[1745612518668,6.6112,151.14,151.1,11.27094295]
[1745612519369,6.6114,151.13,151.1,11.27094295]
[1745612520070,6.6111,151.14,151.1,11.27094295]
[1745612521171,6.6111,151.14,151.1,17.88334295]
[1745612521373,6.6111,151.14,151.1,11.27094295]
[1745612521764,6.6111,151.14,151.09,6.613]
[1745612521970,6.6115,151.13,151.11,11.27094295]
[1745612523066,35.51094295,151.15,151.11,11.27094295]
[1745612523971,6.6116,151.13,151.11,11.27094295]
[1745612524167,35.51094295,151.15,151.11,11.27094295]
[1745612524472,6.6125,151.11,151.09,11.27094295]
[1745612524866,11.27094295,151.13,151.09,11.27094295]
[1745612525174,11.27094295,151.13,151.06,30.8541]
[1745612525364,11.27094295,151.13,151.08,11.27094295]
[1745612525866,6.612,151.12,151.08,11.27094295]
[1745612526774,6.612,151.12,151.08,17.88444295]
[1745612528075,6.6127,151.1,151.08,11.27094295]
[1745612528273,11.27094295,151.13,151.08,11.27094295]
[1745612528976,6.6125,151.11,151.08,11.27094295]
[1745612529276,30.8725,151.11,151.08,11.27094295]
[1745612529876,24.26,151.11,151.08,11.27094295]
[1745612530877,6.6129,151.1,151.08,11.27094295]
[1745612531074,24.26,151.11,151.08,11.27094295]
[1745612531576,35.53094295,151.11,151.04,6.6151]
[1745612532077,35.53094295,151.11,151.06,11.27094295]
[1745612532272,11.27094295,151.09,151.04,11.27094295]
[1745612533982,35.53094295,151.11,151.06,11.27094295]
[1745612534275,24.26,151.11,151.08,11.27094295]
[1745612535878,24.26,151.11,151.08,17.88424295]
[1745612536179,24.26,151.11,151.08,11.27094295]
[1745612537179,30.8722,151.11,151.08,11.27094295]
[1745612539881,6.6128,151.1,151.08,11.27094295]
[1745612541081,6.6131,151.09,151.08,11.27094295]
[1745612541981,6.6131,151.09,151.05,6.6146]
[1745612542279,6.6131,151.09,151.07,11.27094295]
[1745612543481,6.6128,151.1,151.07,11.27094295]
[1745612544877,24.26,151.11,151.07,11.27094295]
[1745612545082,6.6131,151.09,151.07,11.27094295]
[1745612546683,6.6128,151.1,151.07,11.27094295]
[1745612546884,24.22,151.17,151.09,11.27094295]
[1745612547183,30.8298,151.17,151.15,11.27094295]
[1745612547384,31.11094295,151.16,150.94,377.39093178]
[1745612547584,11.27094295,151.02,150.95,7.01259968]
[1745612547783,24.22,151.01,150.97,11.27094295]
[1745612548881,30.8369,151.01,150.97,11.27094295]
[1745612549485,3.96808285,151.0,150.97,11.27094295]
[1745612549685,3.96808285,150.99,150.97,11.27094295]
[1745612549887,30.8369,151.01,150.97,11.27094295]
[1745612549888,3.96808285,150.98,150.97,11.27094295]
[1745612551382,3.96808285,150.98,150.95,23.46376991]
[1745612551582,24.22,151.01,150.95,23.46376991]
[1745612551882,3.67726292,151.0,150.95,23.46376991]
[1745612552180,3.67726292,150.99,150.95,23.46376991]
[1745612552383,3.67726292,150.98,150.97,17.66626991]
[1745612552985,24.24,151.07,150.97,24.28626991]
[1745612553180,24.24,151.07,151.03,17.66626991]
[1745612553375,24.24,151.07,151.01,17.66626991]
[1745612554580,24.24,151.07,151.01,24.28266991]
[1745612555178,6.6151,151.05,151.01,24.28266991]
[1745612555885,6.6145,151.06,151.01,24.28266991]
[1745612556485,30.8541,151.07,151.02,6.6161]
[1745612557580,6.6147,151.06,151.02,6.6161]
[1745612557785,24.24,151.07,151.02,6.6161]
[1745612558283,24.24,151.07,151.01,17.66626991]
[1745612559284,30.8541,151.07,151.03,6.6155]
[1745612559787,6.6145,151.06,151.03,6.6155]
[1745612560181,24.24,151.07,151.03,6.6155]
[1745612560483,30.8541,151.07,151.03,6.6155]
[1745612561385,24.24,151.07,151.04,6.6152]
[1745612562084,24.24,151.07,151.06,6.6144]
[1745612563382,24.27866991,151.11,151.07,6.6139]
[1745612563587,24.24,151.1,151.03,17.66626991]
[1745612564085,24.24,151.09,151.07,6.6139]
[1745612564484,6.6125,151.11,151.07,6.6139]
[1745612564683,24.24,151.1,151.07,6.6139]
[1745612564881,6.6125,151.11,151.07,6.6139]
[1745612565383,24.24,151.1,151.07,6.6139]
[1745612565685,24.24,151.09,151.07,6.6139]
[1745612565886,24.24,151.09,151.06,6.6143]
[1745612568787,24.24,151.09,151.03,17.66626991]
[1745612568987,24.24,151.09,151.01,23.50586991]
[1745612569380,6.6141,151.07,151.03,6.6155]
[1745612569584,24.24,151.09,151.01,23.50586991]
[1745612569881,6.6136,151.08,151.05,6.6148]
[1745612570391,6.614,151.07,151.03,6.6155]
[1745612570786,6.614,151.07,151.01,23.50586991]
[1745612570981,6.6137,151.08,151.04,6.6152]
[1745612571686,6.6137,151.08,151.05,6.6148]
[1745612572588,6.6137,151.08,151.04,6.6151]
[1745612572884,6.614,151.07,151.04,6.6151]
[1745612573294,6.614,151.07,151.04,17.91120317]
[1745612573891,6.6136,151.08,151.05,6.6148]
[1745612574189,35.53610317,151.09,151.04,11.29610317]
[1745612574389,35.53610317,151.09,151.05,6.6145]
[1745612574894,6.6136,151.08,151.05,6.6145]
[1745612577091,6.6136,151.08,151.04,17.91120317]
[1745612578894,42.14940317,151.09,151.04,11.29610317]
[1745612579294,42.14940317,151.09,151.05,6.6146]
[1745612580294,6.6136,151.08,151.05,6.6146]
[1745612580495,6.6136,151.08,151.04,17.91120317]
[1745612581297,42.14940317,151.09,151.05,6.6146]
[1745612581995,6.6136,151.08,151.04,17.91120317]
[1745612583298,6.6136,151.08,151.05,6.6148]
[1745612583499,42.14940317,151.09,151.04,11.29610317]
[1745612583796,42.14940317,151.09,151.05,6.6144]
[1745612583997,30.8533,151.09,151.06,11.29610317]
[1745612584197,24.24,151.09,151.06,11.29610317]
[1745612584796,30.8532,151.09,151.06,17.91030317]
[1745612586594,30.8532,151.09,150.94,1.15212713]
[1745612586595,19.84,151.08,150.94,1.15212713]
[1745612586795,11.29610317,150.97,150.9,11.29610317]
[1745612586997,24.06,150.96,150.9,11.29610317]
[1745612587295,24.06,150.96,150.91,6.6207]
[1745612587698,24.06,150.96,150.92,11.29610317]
[1745612587998,24.06,150.96,150.94,11.29610317]
[1745612588198,35.35610317,150.99,150.94,11.29610317]
[1745612588498,6.6179,150.98,150.94,11.29610317]
[1745612589300,6.6179,150.98,150.93,6.62]
[1745612590001,6.6184,150.97,150.92,24.29226496]
[1745612590199,24.06,150.99,150.92,24.29226496]
[1745612590900,6.6183,150.98,150.92,24.29226496]
[1745612591704,6.6183,150.98,150.93,6.62]
[1745612592706,6.6184,150.97,150.93,6.62]
[1745612593299,6.6184,150.97,150.92,17.67186496]
[1745612593597,6.6188,150.96,150.91,24.08]
[1745612594097,355.0,151.31,150.96,363.0]
[1745612594304,19.89,151.36,151.19,17.67186496]
[1745612594305,18.87843252,151.3,151.19,17.67186496]
[1745612594605,43.83506496,151.29,151.17,17.67186496]
[1745612594801,24.08,151.28,151.17,17.67186496]
[1745612595199,24.08,151.28,151.21,17.67186496]
[1745612595395,24.08,151.28,151.23,17.67186496]
[1745612595699,24.08,151.28,151.24,6.748526]
[1745612595901,24.08,151.28,151.25,6.748526]
[1745612596201,24.08,151.28,151.26,6.748526]
[1745612596403,24.08,151.28,151.27,6.748526]
[1745612598704,2.0832,151.29,151.27,6.748526]
[1745612598905,25.12,151.31,151.28,6.748526]
[1745612599104,25.12,151.31,151.29,6.748526]
[1745612599305,25.12,151.31,151.3,6.748526]
[1745612602206,31.7235,151.31,151.3,6.748526]
[1745612604509,25.12,151.31,151.3,6.67940343]
[1745612606304,27.0513,151.34,151.3,6.67940343]
[1745612606609,27.0513,151.34,151.31,6.67940343]
[1745612606810,27.0513,151.34,151.32,6.67940343]
[1745612607012,25.1,151.34,151.33,6.67940343]
[1745612607511,53.26338854,151.34,151.23,25.1]
[1745612607711,53.26338854,151.34,151.25,6.606]
[1745612607912,53.26338854,151.34,151.12,41.38618854]
[1745612607913,76.16677708,151.28,150.99,38.3344]
[1745612608212,28.16338854,151.17,151.05,3.9431]
[1745612608407,25.1,151.16,151.05,3.9431]
[1745612608913,31.7104,151.16,151.07,6.6137]
[1745612609313,25.1,151.16,151.07,6.6137]
[1745612609520,6.6108,151.15,151.07,6.6137]
[1745612610715,6.611,151.14,151.07,6.6137]
[1745612611310,6.6106,151.15,151.09,6.6131]
[1745612611715,25.1,151.16,151.08,2.0251]
[1745612611918,6.6112,151.14,151.08,8.6383]
[1745612612114,25.1,151.16,151.08,8.6383]
[1745612612416,25.1,151.16,151.08,2.0251]
[1745612613713,6.6126,151.11,151.08,2.0251]
[1745612614117,6.6127,151.1,151.08,2.0251]
[1745612614915,6.6123,151.11,151.08,2.0251]
[1745612616021,6.6119,151.12,151.08,8.6386]
[1745612616221,25.1,151.16,151.08,2.0251]
[1745612616622,6.6125,151.11,151.08,2.0251]
[1745612617221,25.1,151.16,151.05,3.9431]
[1745612617418,25.1,151.16,151.06,6.6143]
[1745612617723,25.1,151.16,151.05,3.9431]
[1745612617922,28.16338854,151.14,151.05,10.5576]
[1745612618825,6.6129,151.1,151.05,10.5576]
[1745612620124,6.6129,151.1,151.06,6.6143]
[1745612621223,6.6132,151.09,151.05,10.5577]
[1745612621424,25.1,151.12,151.05,3.9431]
[1745612622422,6.6134,151.09,151.05,10.5577]
[1745612624324,25.1,151.12,151.05,10.5577]
[1745612625023,6.6134,151.09,151.05,10.5577]
[1745612625223,25.1,151.12,151.05,10.5577]
[1745612625520,6.6138,151.08,151.04,31.7151]
[1745612625924,6.6138,151.08,151.04,25.1]
[1745612626326,25.1,151.12,151.04,25.1]
[1745612626525,28.16338854,151.11,151.01,29.2695]
[1745612626719,30.13228854,151.11,151.01,3.8695]
[1745612626921,28.16338854,151.08,150.95,53.56338854]
[1745612627119,27.2989,151.07,150.95,53.56338854]
[1745612627321,29.2466,151.07,150.95,53.56338854]
[1745612628626,6.6158,151.03,150.99,6.6174]
[1745612628925,32.0158,151.03,150.95,53.56338854]
[1745612629122,25.4,151.03,150.95,53.56338854]
[1745612629626,25.4,151.03,150.98,6.6178]
[1745612630727,32.016,151.03,150.98,6.6178]
[1745612632430,32.016,151.03,150.99,6.6175]
[1745612632926,25.4,151.03,150.96,6.6186]
[1745612633135,28.16338854,151.02,150.88,259.52316963]
[1745612633434,6.6191,150.96,150.91,6.6207]
[1745612634031,25.4,150.98,150.88,28.16338854]
[1745612634530,6.6188,150.96,150.92,6.6203]
[1745612634734,6.6188,150.96,150.88,28.16338854]
[1745612634931,27.4861,150.98,150.88,28.16338854]
[1745612636031,6.6189,150.96,150.91,6.621]
[1745612636623,6.6194,150.95,150.91,6.621]
[1745612637131,6.6189,150.96,150.92,6.6205]
[1745612638533,27.4861,150.98,150.87,28.16338854]
[1745612638932,6.619,150.96,150.92,6.6202]
[1745612641732,32.0181,150.98,150.94,6.6196]
[1745612642128,25.4,150.98,150.91,17.67810508]
[1745612642326,25.4,150.98,150.94,6.6194]
[1745612642535,25.4,150.98,150.91,17.67810508]
[1745612642731,25.4,150.98,150.9,25.42]
[1745612642932,25.4,150.98,150.88,17.67810508]
[1745612643130,25.4,150.98,150.9,17.67810508]
[1745612643337,32.0181,150.98,150.9,17.67810508]
[1745612643634,25.4,150.98,150.92,17.67810508]
[1745612644535,25.4,150.98,150.91,25.42]
[1745612644737,6.6184,150.97,150.94,6.6194]
[1745612645236,25.4,150.98,150.91,25.42]
[1745612645536,25.42,151.01,150.92,17.67810508]
[1745612645734,25.42,151.01,150.92,19.71140508]
[1745612645935,6.6177,150.99,150.96,6.6188]
[1745612646737,6.618,150.98,150.95,6.6191]
[1745612646934,43.09810508,150.97,150.82,14.40224331]
[1745612647138,6.6199,150.94,150.87,17.67810508]